fUST/lending_fUST_20241111
["ID","MTS","AMOUNT","RATE_DAILY","PERIOD"]
[341945356,1731318658712,-500.32004056,0.00025273,2]
[341945357,1731318658721,-500.0,0.00025273,2]
[341945358,1731318658730,-500.0,0.00025273,2]
[341945359,1731318658740,-500.0,0.00025273,2]
[341945360,1731318658749,-427.33200607,0.00025273,2]
[341945361,1731318658758,-318.78643313,0.00025273,2]
[341945362,1731318658768,-507.88111795,0.00025273,2]
[341945363,1731318658777,-500.0,0.00025273,2]
[341945364,1731318658786,-500.23813561,0.00025273,2]
[341945365,1731318658798,-500.0,0.00025273,2]
[341945366,1731318658808,-230.23779458,0.00025273,2]
[341945367,1731318658817,-500.30210476,0.00025273,2]
[341945368,1731318658827,-500.0,0.00025273,2]
[341945369,1731318658836,-500.67120367,0.00025273,2]
[341945370,1731318658846,-151.0,0.00025287,4]
[341945371,1731318658855,-4560.50205096,0.000253,2]
[341945372,1731318658864,-4560.50205094,0.000253,2]
[341945373,1731318658873,-4560.50205094,0.000253,2]
[341945374,1731318658884,-4560.50205094,0.000253,2]
[341945375,1731318658892,-111.62653214,0.00025302,2]
[341945376,1731318659059,-1159.6601457,0.00025302,2]
[341945377,1731318659069,-160.0,0.0002533,5]
[341945378,1731318659078,-3380.479977,0.00025468,2]
[341945379,1731318659087,-4143.704606,0.00025468,2]
[341945380,1731318659096,-303.934129,0.00025468,2]
[341945381,1731318659105,-463.01339,0.00025468,2]
[341945382,1731318659114,-306.735228,0.00025468,2]
[341945383,1731318659123,-157.23985293,0.00025479,2]
[341945384,1731318659133,-500.0,0.00025479,2]
[341945385,1731318659142,-150.03,0.00025479,2]
[341945386,1731318659151,-500.0,0.00025479,2]
[341945387,1731318659160,-500.0,0.00025479,2]
[341945388,1731318659169,-512.51137563,0.00025479,2]
[341945389,1731318659178,-500.0,0.00025479,2]
[341945390,1731318659187,-500.0,0.00025479,2]
[341945391,1731318659196,-500.0,0.00025479,2]
[341945392,1731318659206,-500.0,0.00025479,2]
[341945393,1731318659219,-500.0,0.00025479,2]
[341945394,1731318659228,-500.0,0.00025479,2]
[341945395,1731318659237,-500.0,0.00025479,2]
[341945396,1731318659246,-500.0,0.00025479,2]
[341945397,1731318659255,-500.0,0.00025479,2]
[341945398,1731318659264,-585.35398462,0.00025479,2]
[341945399,1731318659273,-500.0,0.00025479,2]
[341945400,1731318659281,-500.0,0.00025479,2]
[341945401,1731318659290,-500.0,0.00025479,2]
[341945402,1731318659299,-500.0,0.00025479,2]
[341945403,1731318659308,-150.12912762,0.00025479,2]
[341945404,1731318659317,-519.9081518,0.00025479,2]
[341945405,1731318659326,-500.0,0.00025479,2]
[341945406,1731318659335,-500.0,0.00025479,2]
[341945407,1731318659344,-500.0,0.00025479,2]
[341945408,1731318659354,-500.0,0.00025479,2]
[341945409,1731318659363,-500.0,0.00025479,2]
[341945410,1731318659372,-507.33917494,0.00025479,2]
[341945411,1731318659385,-416.76964014,0.00025479,2]
[341945412,1731318659394,-500.0,0.00025479,2]
[341945413,1731318659403,-593.38147904,0.00025479,2]
[341945414,1731318659411,-523.43,0.00025479,2]
[341945415,1731318659421,-500.0,0.00025479,2]
[341945416,1731318659431,-500.0,0.00025479,2]
[341945417,1731318659440,-500.0,0.00025479,2]
[341945418,1731318659449,-500.0,0.00025479,2]
[341945419,1731318659458,-500.0,0.00025479,2]
[341945420,1731318659468,-518.17135942,0.00025479,2]
[341945421,1731318659477,-500.0,0.00025479,2]
[341945422,1731318659487,-500.0,0.00025479,2]
[341945423,1731318659495,-507.70238262,0.00025479,2]
[341945424,1731318659504,-500.0,0.00025479,2]
[341945425,1731318659514,-500.0,0.00025479,2]
[341945426,1731318659523,-500.0,0.00025479,2]
[341945427,1731318659531,-500.0,0.00025479,2]
[341945428,1731318659540,-500.0,0.00025479,2]
[341945429,1731318659550,-500.0,0.00025479,2]
[341945430,1731318659559,-500.0,0.00025479,2]
[341945431,1731318659568,-500.0,0.00025479,2]
[341945432,1731318659577,-500.0,0.00025479,2]
[341945433,1731318659586,-500.0,0.00025479,2]
[341945434,1731318659595,-500.0,0.00025479,2]
[341945435,1731318659604,-500.0,0.00025479,2]
[341945436,1731318659613,-500.0,0.00025479,2]
[341945437,1731318659622,-587.07887487,0.00025479,2]
[341945438,1731318659633,-500.0,0.00025479,2]
[341945439,1731318659642,-431.37349323,0.00025479,2]
[341945440,1731318659651,-500.0,0.00025479,2]
[341945441,1731318659661,-500.0,0.00025479,2]
[341945442,1731318659670,-503.92029388,0.00025479,2]
[341945443,1731318659679,-247.20839365,0.00025479,2]
[341945444,1731318659688,-500.0,0.00025479,2]
[341945445,1731318659698,-500.46972516,0.00025479,2]
[341945446,1731318659707,-500.0,0.00025479,2]
[341945447,1731318659716,-500.0,0.00025479,2]
[341945448,1731318659725,-500.0,0.00025479,2]
[341945449,1731318659734,-500.0,0.00025479,2]
[341945450,1731318659743,-500.0,0.00025479,2]
[341945451,1731318659753,-500.0,0.00025479,2]
[341945452,1731318659762,-1454.99,0.00025479,2]
[341945453,1731318659771,-500.0,0.00025479,2]
[341945454,1731318659781,-417.24953391,0.00025479,2]
[341945455,1731318659790,-500.0,0.00025479,2]
[341945456,1731318659803,-500.0,0.00025479,2]
[341945457,1731318659812,-509.02536797,0.00025479,2]
[341945458,1731318659822,-503.33035149,0.00025479,2]
[341945459,1731318659831,-500.0,0.00025479,2]
[341945460,1731318659842,-500.0,0.00025479,2]
[341945461,1731318659851,-500.0,0.00025479,2]
[341945462,1731318659861,-1003.37,0.00025479,2]
[341945463,1731318659870,-500.0,0.00025479,2]
[341945464,1731318659882,-500.0,0.00025479,2]
[341945465,1731318659893,-500.0,0.00025479,2]
[341945466,1731318659902,-500.0,0.00025479,2]
[341945467,1731318659912,-500.0,0.00025479,2]
[341945468,1731318659921,-500.0,0.00025479,2]
[341945469,1731318659930,-1000.0,0.00025479,2]
[341945470,1731318659940,-500.0,0.00025479,2]
[341945471,1731318659949,-655.13,0.00025479,2]
[341945472,1731318659959,-535.36,0.00025479,2]
[341945473,1731318659969,-500.0,0.00025479,2]
[341945474,1731318659979,-500.0,0.00025479,2]
[341945475,1731318659988,-500.0,0.00025479,2]
[341945476,1731318660094,-500.0,0.00025479,2]
[341945477,1731318660104,-500.0,0.00025479,2]
[341945478,1731318660113,-500.0,0.00025479,2]
[341945479,1731318660123,-503.83226573,0.00025479,2]
[341945480,1731318660133,-500.0,0.00025479,2]
[341945481,1731318660143,-500.0,0.00025479,2]
[341945482,1731318660153,-503.08540763,0.00025479,2]
[341945483,1731318660162,-500.0,0.00025479,2]
[341945484,1731318660171,-500.0,0.00025479,2]
[341945485,1731318660180,-500.0,0.00025479,2]
[341945486,1731318660190,-500.0,0.00025479,2]
[341945487,1731318660200,-500.0,0.00025479,2]
[341945488,1731318660210,-500.0,0.00025479,2]
[341945489,1731318660220,-500.0,0.00025479,2]
[341945490,1731318660230,-500.0,0.00025479,2]
[341945491,1731318660240,-500.0,0.00025479,2]
[341945492,1731318660250,-500.0,0.00025479,2]
[341945493,1731318660260,-506.05227736,0.00025479,2]
[341945494,1731318660270,-500.0,0.00025479,2]
[341945495,1731318660280,-500.0,0.00025479,2]
[341945496,1731318660290,-500.0,0.00025479,2]
[341945497,1731318660300,-500.0,0.00025479,2]
[341945498,1731318660310,-500.0,0.00025479,2]
[341945499,1731318660320,-319.4159982,0.00025479,2]
[341945500,1731318660330,-500.0,0.00025479,2]
[341945501,1731318660340,-500.0,0.00025479,2]
[341945502,1731318660350,-500.0,0.00025479,2]
[341945503,1731318660360,-500.0,0.00025479,2]
[341945504,1731318660370,-500.0,0.00025479,2]
[341945505,1731318660380,-973.52,0.00025479,2]
[341945506,1731318660389,-500.0,0.00025479,2]
[341945507,1731318660399,-708.64,0.00025479,2]
[341945508,1731318660409,-500.0,0.00025479,2]
[341945509,1731318660419,-500.0,0.00025479,2]
[341945510,1731318660428,-500.0,0.00025479,2]
[341945511,1731318660437,-500.0,0.00025479,2]
[341945512,1731318660447,-500.0,0.00025479,2]
[341945513,1731318660457,-2336.0,0.00025479,2]
[341945514,1731318660467,-500.0,0.00025479,2]
[341945515,1731318660477,-500.0,0.00025479,2]
[341945516,1731318660487,-500.0,0.00025479,2]
[341945517,1731318660497,-500.0,0.00025479,2]
[341945518,1731318660507,-383.96071774,0.00025479,2]
[341945519,1731318660517,-500.0,0.00025479,2]
[341945520,1731318660527,-500.0,0.00025479,2]
[341945521,1731318660536,-500.0,0.00025479,2]
[341945522,1731318660546,-500.0,0.00025479,2]
[341945523,1731318660555,-500.0,0.00025479,2]
[341945524,1731318660565,-500.0,0.00025479,2]
[341945525,1731318660574,-500.0,0.00025479,2]
[341945526,1731318660584,-500.0,0.00025479,2]
[341945527,1731318660593,-500.0,0.00025479,2]
[341945528,1731318660603,-500.0,0.00025479,2]
[341945529,1731318660612,-500.0,0.00025479,2]
[341945530,1731318660622,-500.0,0.00025479,2]
[341945531,1731318660633,-500.0,0.00025479,2]
[341945532,1731318660643,-500.0,0.00025479,2]
[341945533,1731318660652,-500.0,0.00025479,2]
[341945534,1731318660662,-500.0,0.00025479,2]
[341945535,1731318660672,-500.0,0.00025479,2]
[341945536,1731318660682,-500.0,0.00025479,2]
[341945537,1731318660691,-500.0,0.00025479,2]
[341945538,1731318660701,-500.0,0.00025479,2]
[341945539,1731318660711,-544.74868512,0.00025479,2]
[341945540,1731318660721,-505.31,0.00025479,2]
[341945541,1731318660730,-500.0,0.00025479,2]
[341945542,1731318660740,-500.0,0.00025479,2]
[341945543,1731318660750,-500.31487748,0.00025479,2]
[341945544,1731318660760,-500.0,0.00025479,2]
[341945545,1731318660770,-500.0,0.00025479,2]
[341945546,1731318660780,-500.0,0.00025479,2]
[341945547,1731318660791,-500.0,0.00025479,2]
[341945548,1731318660808,-500.0,0.00025479,2]
[341945549,1731318660818,-2535.14,0.00025479,2]
[341945550,1731318660828,-500.0,0.00025479,2]
[341945551,1731318660839,-502.72,0.00025479,2]
[341945552,1731318660852,-517.44834281,0.00025479,2]
[341945553,1731318660863,-251.09161348,0.00025479,2]
[341945554,1731318660875,-859.69,0.00025479,2]
[341945555,1731318660888,-500.0,0.00025479,2]
[341945556,1731318660898,-500.0,0.00025479,2]
[341945557,1731318660908,-500.0,0.00025479,2]
[341945558,1731318660918,-418.34160926,0.00025479,2]
[341945559,1731318660928,-503.71521412,0.00025479,2]
[341945560,1731318660938,-500.0,0.00025479,2]
[341945561,1731318660947,-500.0,0.00025479,2]
[341945562,1731318660957,-500.0,0.00025479,2]
[341945563,1731318660967,-500.0,0.00025479,2]
[341945564,1731318660978,-500.0,0.00025479,2]
[341945565,1731318660987,-500.0,0.00025479,2]
[341945566,1731318660999,-1182.53,0.00025479,2]
[341945567,1731318661009,-1159.09,0.00025479,2]
[341945568,1731318661019,-500.0,0.00025479,2]
[341945569,1731318661029,-500.0,0.00025479,2]
[341945570,1731318661039,-500.0,0.00025479,2]
[341945571,1731318661049,-500.0,0.00025479,2]
[341945572,1731318661058,-1672.09,0.00025479,2]
[341945573,1731318661069,-1375.97,0.00025479,2]
[341945574,1731318661079,-501.77776982,0.00025479,2]
[341945575,1731318661089,-500.0,0.00025479,2]
[341945576,1731318661099,-500.0,0.00025479,2]
[341945577,1731318661108,-500.0,0.00025479,2]
[341945578,1731318661118,-503.58376675,0.00025479,2]
[341945579,1731318661128,-500.0,0.00025479,2]
[341945580,1731318661138,-500.0,0.00025479,2]
[341945581,1731318661147,-500.0,0.00025479,2]
[341945582,1731318661157,-2419.64,0.00025479,2]
[341945583,1731318661167,-508.80888844,0.00025479,2]
[341945584,1731318661176,-500.0,0.00025479,2]
[341945585,1731318661185,-500.0,0.00025479,2]
[341945586,1731318661196,-500.0,0.00025479,2]
[341945587,1731318661205,-200.0,0.00025479,2]
[341945588,1731318661214,-500.0,0.00025479,2]
[341945589,1731318661223,-500.0,0.00025479,2]
[341945590,1731318661232,-500.0,0.00025479,2]
[341945591,1731318661242,-626.69842654,0.00025479,2]
[341945592,1731318661250,-500.0,0.00025479,2]
[341945593,1731318661259,-500.0,0.00025479,2]
[341945594,1731318661269,-500.0,0.00025479,2]
[341945595,1731318661279,-500.0,0.00025479,2]
[341945596,1731318661289,-1016.02,0.00025479,2]
[341945597,1731318661298,-519.13074241,0.00025479,2]
[341945598,1731318661308,-679.17,0.00025479,2]
[341945599,1731318661318,-500.0,0.00025479,2]
[341945600,1731318661327,-500.0,0.00025479,2]
[341945601,1731318661336,-500.0,0.00025479,2]
[341945602,1731318661346,-1808.19,0.00025479,2]
[341945603,1731318661355,-1628.68,0.00025479,2]
[341945604,1731318661363,-500.0,0.00025479,2]
[341945605,1731318661372,-500.0,0.00025479,2]
[341945606,1731318661383,-500.0,0.00025479,2]
[341945607,1731318661392,-500.0,0.00025479,2]
[341945608,1731318661402,-565.627699,0.00025479,2]
[341945609,1731318661411,-381.71737911,0.00025479,2]
[341945610,1731318661420,-369.53366413,0.00025479,2]
[341945611,1731318661430,-500.0,0.00025479,2]
[341945612,1731318661439,-500.0,0.00025479,2]
[341945613,1731318661449,-500.0,0.00025479,2]
[341945614,1731318661458,-500.0,0.00025479,2]
[341945615,1731318661467,-1015.82,0.00025479,2]
[341945616,1731318661476,-644.99,0.00025479,2]
[341945617,1731318661486,-500.0,0.00025479,2]
[341945618,1731318661495,-500.0,0.00025479,2]
[341945619,1731318661505,-4275.56,0.00025479,2]
[341945620,1731318661514,-200.0,0.00025479,2]
[341945621,1731318661523,-500.58215346,0.00025479,2]
[341945622,1731318661532,-198.01149417,0.00025479,2]
[341945623,1731318661542,-500.0,0.00025479,2]
[341945624,1731318661552,-502.49271803,0.00025479,2]
[341945625,1731318661562,-500.0,0.00025479,2]
[341945626,1731318661572,-500.0,0.00025479,2]
[341945627,1731318661581,-484.37251709,0.00025479,2]
[341945628,1731318661591,-1107.72,0.00025479,2]
[341945629,1731318661600,-500.0,0.00025479,2]
[341945630,1731318661610,-873.29,0.00025479,2]
[341945631,1731318661706,-2206.62,0.00025479,2]
[341945632,1731318661716,-500.0,0.00025479,2]
[341945633,1731318661727,-500.0,0.00025479,2]
[341945634,1731318661737,-500.0,0.00025479,2]
[341945635,1731318661747,-509.82,0.00025479,2]
[341945636,1731318661757,-500.0,0.00025479,2]
[341945637,1731318661766,-334.74390031,0.00025479,2]
[341945638,1731318661776,-1624.78,0.00025479,2]
[341945639,1731318661786,-1247.16,0.00025479,2]
[341945640,1731318661798,-500.0,0.00025479,2]
[341945641,1731318661807,-500.0,0.00025479,2]
[341945642,1731318661817,-500.0,0.00025479,2]
[341945643,1731318661826,-597.51,0.00025479,2]
[341945644,1731318661835,-1148.79,0.00025479,2]
[341945645,1731318661846,-500.0,0.00025479,2]
[341945646,1731318661855,-500.0,0.00025479,2]
[341945647,1731318661864,-500.0,0.00025479,2]
[341945648,1731318661876,-1224.78,0.00025479,2]
[341945649,1731318661887,-500.0,0.00025479,2]
[341945650,1731318661896,-500.0,0.00025479,2]
[341945651,1731318661906,-846.71,0.00025479,2]
[341945652,1731318661916,-500.0,0.00025479,2]
[341945653,1731318661925,-667.36,0.00025479,2]
[341945654,1731318661935,-500.0,0.00025479,2]
[341945655,1731318661945,-500.0,0.00025479,2]
[341945656,1731318661954,-500.0,0.00025479,2]
[341945657,1731318661965,-500.0,0.00025479,2]
[341945658,1731318661976,-696.08,0.00025479,2]
[341945659,1731318661986,-500.0,0.00025479,2]
[341945660,1731318661997,-500.0,0.00025479,2]
[341945661,1731318662006,-500.0,0.00025479,2]
[341945662,1731318662017,-500.0,0.00025479,2]
[341945663,1731318662026,-500.0,0.00025479,2]
[341945664,1731318662035,-2025.36,0.00025479,2]
[341945665,1731318662045,-500.0,0.00025479,2]
[341945666,1731318662054,-500.0,0.00025479,2]
[341945667,1731318662064,-2051.61,0.00025479,2]
[341945668,1731318662074,-500.0,0.00025479,2]
[341945669,1731318662084,-500.0,0.00025479,2]
[341945670,1731318662094,-251.5786886,0.00025479,2]
[341945671,1731318662103,-500.0,0.00025479,2]
[341945672,1731318662113,-4297.42,0.00025479,2]
[341945673,1731318662123,-1965.72,0.00025479,2]
[341945674,1731318662133,-500.0,0.00025479,2]
[341945675,1731318662142,-515.48,0.00025479,2]
[341945676,1731318662152,-500.0,0.00025479,2]
[341945677,1731318662161,-866.18,0.00025479,2]
[341945678,1731318662170,-500.0,0.00025479,2]
[341945679,1731318662180,-1511.33,0.00025479,2]
[341945680,1731318662190,-500.0,0.00025479,2]
[341945681,1731318662199,-500.0,0.00025479,2]
[341945682,1731318662209,-517.87496214,0.00025479,2]
[341945683,1731318662218,-500.0,0.00025479,2]
[341945684,1731318662228,-500.0,0.00025479,2]
[341945685,1731318662238,-500.0,0.00025479,2]
[341945686,1731318662249,-500.0,0.00025479,2]
[341945687,1731318662259,-500.0,0.00025479,2]
[341945688,1731318662268,-500.0,0.00025479,2]
[341945689,1731318662278,-560.02,0.00025479,2]
[341945690,1731318662288,-398.56962029,0.00025479,2]
[341945691,1731318662297,-500.0,0.00025479,2]
[341945692,1731318662307,-302.53564972,0.00025479,2]
[341945693,1731318662316,-500.0,0.00025479,2]
[341945694,1731318662326,-818.36,0.00025479,2]
[341945695,1731318662336,-500.0,0.00025479,2]
[341945696,1731318662349,-502.53173018,0.00025479,2]
[341945697,1731318662358,-500.0,0.00025479,2]
[341945698,1731318662368,-504.37119704,0.00025479,2]
[341945699,1731318662379,-6666.7,0.00025479,2]
[341945700,1731318662390,-1119.34,0.00025479,2]
[341945701,1731318662400,-500.0,0.00025479,2]
[341945702,1731318662410,-500.0,0.00025479,2]
[341945703,1731318662419,-5553.97829522,0.00025479,2]
[341945704,1731318662529,-201.444581,0.00024657,7]
[341945705,1731318662539,-500.0,0.00024657,2]
[341945706,1731318662549,-115.79239973,0.00024657,2]
[341945707,1731318662560,-384.20760027,0.00024657,2]
[341945708,1731318662570,-201.444581,0.00024657,7]
[341945709,1731318662580,-201.444581,0.00024657,7]
[341945710,1731318662590,-201.444581,0.00024657,7]
[341945711,1731318662600,-201.444581,0.00024657,7]
[341945712,1731318662611,-500.0,0.00024931,2]
[341945713,1731318662620,-89.63062773,0.00025205,2]
[341945714,1731318664580,-410.36937227,0.00025205,2]
[341945715,1731318664595,-194.66170478,0.00025479,2]
[341945716,1731318664610,-500.0,0.00025479,2]
[341945717,1731318664624,-500.0,0.00025479,2]
[341945718,1731318664642,-518.44631369,0.00025479,2]
[341945719,1731318664658,-500.0,0.00025479,2]
[341945720,1731318664668,-500.0,0.00025479,2]
[341945721,1731318664678,-500.0,0.00025479,2]
[341945722,1731318664688,-500.0,0.00025479,2]
[341945723,1731318664698,-694.02,0.00025479,2]
[341945724,1731318664708,-501.8991592,0.00025479,2]
[341945725,1731318664717,-500.0,0.00025479,2]
[341945726,1731318664727,-500.0,0.0002549,2]
[341945727,1731318664737,-151.0,0.00025556,4]
[341945728,1731318664747,-172.133935,0.00025573,2]
[341945729,1731318664758,-1334.56,0.000256,14]
[341945730,1731318664768,-4247.35981206,0.000256,2]
[341945731,1731318665398,-250.0,0.0002384,2]
[341945732,1731318665407,-150.65396862,0.00024656,2]
[341945733,1731318665419,-1429.89189508,0.00024656,2]
[341945734,1731318665429,-211.5746404,0.00024656,2]
[341945735,1731318665440,-282.78652112,0.00024656,2]
[341945736,1731318665450,-201.444581,0.00024657,7]
[341945737,1731318665460,-201.444581,0.00024657,7]
[341945738,1731318665469,-201.444581,0.00024657,7]
[341945739,1731318665479,-201.444581,0.00024657,7]
[341945740,1731318665489,-201.444581,0.00024657,7]
[341945741,1731318665499,-201.444581,0.00024657,7]
[341945742,1731318665508,-201.444573,0.00024657,7]
[341945743,1731318665518,-22386.24,0.00024657,2]
[341945744,1731318665528,-3727.22900026,0.000256,2]
[341945745,1731318665538,-160.0,0.0002564,6]
[341945746,1731318665547,-307.0,0.000257,2]
[341945747,1731318665556,-6856.85,0.000257,14]
[341945748,1731318665565,-500.0,0.00025753,2]
[341945749,1731318665575,-250.51734388,0.00025753,2]
[341945750,1731318665585,-500.0,0.00025753,2]
[341945751,1731318665594,-500.0,0.00025753,2]
[341945752,1731318665604,-500.0,0.00025753,2]
[341945753,1731318665613,-500.0,0.00025753,2]
[341945754,1731318665622,-500.0,0.00025753,2]
[341945755,1731318665631,-500.0,0.00025753,2]
[341945756,1731318665644,-508.98081895,0.00025753,2]
[341945757,1731318665653,-500.0,0.00025753,2]
[341945758,1731318665663,-305.15246418,0.00025753,2]
[341945759,1731318665673,-500.0,0.00025753,2]
[341945760,1731318665683,-500.0,0.00025753,2]
[341945761,1731318665693,-500.0,0.00025753,2]
[341945762,1731318665702,-500.0,0.00025753,2]
[341945763,1731318665712,-500.0,0.00025753,2]
[341945764,1731318665721,-500.0,0.00025753,2]
[341945765,1731318665730,-503.92081237,0.00025753,2]
[341945766,1731318665740,-515.82514339,0.00025753,2]
[341945767,1731318665749,-500.0,0.00025753,2]
[341945768,1731318665759,-542.44056729,0.00025753,2]
[341945769,1731318665769,-523.43,0.00025753,2]
[341945770,1731318665778,-500.0,0.00025753,2]
[341945771,1731318665788,-436.73479235,0.00025753,2]
[341945772,1731318665799,-500.0,0.00025753,2]
[341945773,1731318665810,-505.07648469,0.00025753,2]
[341945774,1731318665819,-215.65969092,0.00025753,2]
[341945775,1731318665829,-500.0,0.00025753,2]
[341945776,1731318665839,-500.0,0.00025753,2]
[341945777,1731318665849,-500.0,0.00025753,2]
[341945778,1731318665859,-500.0,0.00025753,2]
[341945779,1731318665868,-500.0,0.00025753,2]
[341945780,1731318665880,-500.0,0.00025753,2]
[341945781,1731318665892,-500.0,0.00025753,2]
[341945782,1731318665903,-556.79568462,0.00025753,2]
[341945783,1731318665912,-500.0,0.00025753,2]
[341945784,1731318665922,-500.0,0.00025753,2]
[341945785,1731318665931,-500.0,0.00025753,2]
[341945786,1731318665941,-500.0,0.00025753,2]
[341945787,1731318665951,-427.45792355,0.00025753,2]
[341945788,1731318665960,-500.0,0.00025753,2]
[341945789,1731318665969,-514.57133151,0.00025753,2]
[341945790,1731318665979,-502.5369878,0.00025753,2]
[341945791,1731318665989,-199.63392208,0.00025753,2]
[341945792,1731318665999,-500.0,0.00025753,2]
[341945793,1731318666008,-500.0,0.00025753,2]
[341945794,1731318666018,-1454.99,0.00025753,2]
[341945795,1731318666028,-193.13266262,0.00025753,2]
[341945796,1731318666038,-352.83327194,0.00025753,2]
[341945797,1731318666048,-500.0,0.00025753,2]
[341945798,1731318666058,-500.0,0.00025753,2]
[341945799,1731318666067,-500.0,0.00025753,2]
[341945800,1731318666077,-500.0,0.00025753,2]
[341945801,1731318666086,-1003.37,0.00025753,2]
[341945802,1731318666095,-500.0,0.00025753,2]
[341945803,1731318666105,-500.0,0.00025753,2]
[341945804,1731318666115,-500.0,0.00025753,2]
[341945805,1731318666124,-500.0,0.00025753,2]
[341945806,1731318666133,-500.0,0.00025753,2]
[341945807,1731318666143,-500.0,0.00025753,2]
[341945808,1731318666152,-1000.0,0.00025753,2]
[341945809,1731318666162,-500.0,0.00025753,2]
[341945810,1731318666172,-655.13,0.00025753,2]
[341945811,1731318666181,-535.36,0.00025753,2]
[341945812,1731318666191,-500.0,0.00025753,2]
[341945813,1731318666201,-500.0,0.00025753,2]
[341945814,1731318666211,-500.0,0.00025753,2]
[341945815,1731318666220,-500.0,0.00025753,2]
[341945816,1731318666230,-500.0,0.00025753,2]
[341945817,1731318666240,-500.0,0.00025753,2]
[341945818,1731318666250,-500.0,0.00025753,2]
[341945819,1731318666259,-500.0,0.00025753,2]
[341945820,1731318666270,-500.0,0.00025753,2]
[341945821,1731318666279,-500.0,0.00025753,2]
[341945822,1731318666288,-253.923298,0.00025753,2]
[341945823,1731318666298,-500.0,0.00025753,2]
[341945824,1731318666308,-500.0,0.00025753,2]
[341945825,1731318666318,-500.0,0.00025753,2]
[341945826,1731318666327,-511.17824168,0.00025753,2]
[341945827,1731318666337,-504.36639116,0.00025753,2]
[341945828,1731318666346,-500.0,0.00025753,2]
[341945829,1731318666356,-500.0,0.00025753,2]
[341945830,1731318666365,-503.8134152,0.00025753,2]
[341945831,1731318666375,-500.0,0.00025753,2]
[341945832,1731318666386,-500.0,0.00025753,2]
[341945833,1731318666395,-500.0,0.00025753,2]
[341945834,1731318666404,-500.0,0.00025753,2]
[341945835,1731318666414,-500.0,0.00025753,2]
[341945836,1731318666424,-500.0,0.00025753,2]
[341945837,1731318666433,-500.0,0.00025753,2]
[341945838,1731318666442,-367.03802767,0.00025753,2]
[341945839,1731318666452,-973.52,0.00025753,2]
[341945840,1731318666462,-511.0435859,0.00025753,2]
[341945841,1731318666472,-708.64,0.00025753,2]
[341945842,1731318666481,-500.0,0.00025753,2]
[341945843,1731318666491,-500.0,0.00025753,2]
[341945844,1731318666501,-500.0,0.00025753,2]
[341945845,1731318666510,-500.0,0.00025753,2]
[341945846,1731318666521,-504.30913051,0.00025753,2]
[341945847,1731318666531,-2336.0,0.00025753,2]
[341945848,1731318666540,-500.0,0.00025753,2]
[341945849,1731318666550,-500.0,0.00025753,2]
[341945850,1731318666559,-500.0,0.00025753,2]
[341945851,1731318666569,-500.0,0.00025753,2]
[341945852,1731318666579,-500.0,0.00025753,2]
[341945853,1731318666588,-500.0,0.00025753,2]
[341945854,1731318666598,-500.0,0.00025753,2]
[341945855,1731318666607,-223.68634549,0.00025753,2]